[Event "Titled Tuesday Blitz January 03 Early 2023"]
[White "Degenbaev, Aziz"]
[Black "Thomas, Anysia"]
[WhiteFideId "13802640"]
[BlackFideId "670472"]
[WhiteElo "2203"]
[BlackElo "2147"]
[Result "1-0"]
[Round "03"]
[TimeControl "180+2"]
[Date "2023.01.03"]
[WhiteClock "0:01:07"]
[BlackClock "0:00:01"]

1. e4 {[%clk 0:02:57]}  c5 {[%clk 0:02:59]} 2. Nf3 {[%clk 0:02:57]}  g6 {[%clk 0:02:56]} 3. c3 {[%clk 0:02:56]}  d5 {[%clk 0:02:55]} 4. exd5 {[%clk 0:02:56]}  Qxd5 {[%clk 0:02:56]} 5. Na3 {[%clk 0:02:56]}  Bg7 {[%clk 0:02:55]} 6. Bc4 {[%clk 0:02:51]}  Qe4+ {[%clk 0:02:53]} 7. Be2 {[%clk 0:02:50]}  Nh6 {[%clk 0:02:45]} 8. O-O {[%clk 0:02:50]}  O-O {[%clk 0:02:44]} 9. Nb5 {[%clk 0:02:44]}  Na6 {[%clk 0:02:35]} 10. Re1 {[%clk 0:02:37]}  Bg4 {[%clk 0:02:32]} 11. h3 {[%clk 0:02:35]}  Bf5 {[%clk 0:02:23]} 12. Bf1 {[%clk 0:02:22]}  Qd5 {[%clk 0:01:53]} 13. Rxe7 {[%clk 0:02:20]}  Rfe8 {[%clk 0:01:49]} 14. Rxe8+ {[%clk 0:02:20]}  Rxe8 {[%clk 0:01:47]} 15. d4 {[%clk 0:02:21]}  Be4 {[%clk 0:01:38]} 16. Bxh6 {[%clk 0:02:06]}  Bxh6 {[%clk 0:01:36]} 17. dxc5 {[%clk 0:02:06]}  Bxf3 {[%clk 0:01:12]} 18. Qxf3 {[%clk 0:02:03]}  Qxf3 {[%clk 0:01:11]} 19. gxf3 {[%clk 0:02:04]}  Nxc5 {[%clk 0:01:11]} 20. Rd1 {[%clk 0:02:01]}  a6 {[%clk 0:01:02]} 21. Nc7 {[%clk 0:01:59]}  Re7 {[%clk 0:00:58]} 22. Nd5 {[%clk 0:01:59]}  Re6 {[%clk 0:00:54]} 23. Bc4 {[%clk 0:01:55]}  b5 {[%clk 0:00:50]} 24. b4 {[%clk 0:01:53]}  bxc4 {[%clk 0:00:32]} 25. bxc5 {[%clk 0:01:53]}  Bf8 {[%clk 0:00:32]} 26. Rd4 {[%clk 0:01:42]}  Bxc5 {[%clk 0:00:29]} 27. Rxc4 {[%clk 0:01:42]}  Bd6 {[%clk 0:00:18]} 28. Re4 {[%clk 0:01:37]}  Be5 {[%clk 0:00:08]} 29. Kf1 {[%clk 0:01:21]}  f5 {[%clk 0:00:07]} 30. Rc4 {[%clk 0:01:19]}  h6 {[%clk 0:00:03]} 31. Rc8+ {[%clk 0:01:15]}  Kf7 {[%clk 0:00:03]} 32. c4 {[%clk 0:01:15]}  Bd6 {[%clk 0:00:03]} 33. c5 {[%clk 0:01:14]}  Be5 {[%clk 0:00:01]} 34. c6 {[%clk 0:01:14]}  Rd6 {[%clk 0:00:01]} 35. Ne3 {[%clk 0:01:11]}  Ke6 {[%clk 0:00:02]} 36. Nc4 {[%clk 0:01:10]}  Rd1+ {[%clk 0:00:02]} 37. Ke2 {[%clk 0:01:10]}  Rc1 {[%clk 0:00:02]} 38. Re8+ {[%clk 0:01:10]}  Kd5 {[%clk 0:00:01]} 39. Nxe5 {[%clk 0:01:07]}  Rc2+ {[%clk 0:00:01]} 40. Kd3 {[%clk 0:01:07]}  Rxa2 {[%clk 0:00:01]} 41. c7 {[%clk 0:01:07]} 1-0


[Site "https://www.chess.com"]

[Event "Titled Tuesday Blitz January 03 Early 2023"]
[White "Topalov, Aleksandar"]
[Black "Johnson, Ben"]
[WhiteFideId "925659"]
[BlackFideId "2010917"]
[WhiteElo "2233"]
[BlackElo "1961"]
[Result "1-0"]
[Round "03"]
[TimeControl "180+2"]
[Date "2023.01.03"]
[WhiteClock "0:00:19"]
[BlackClock "0:00:03"]

1. b3 {[%clk 0:03:00]}  e5 {[%clk 0:02:58]} 2. Bb2 {[%clk 0:03:01]}  Nc6 {[%clk 0:02:58]} 3. c4 {[%clk 0:03:00]}  Nf6 {[%clk 0:02:56]} 4. e3 {[%clk 0:03:01]}  Be7 {[%clk 0:02:36]} 5. Nf3 {[%clk 0:03:00]}  d6 {[%clk 0:02:36]} 6. d4 {[%clk 0:03:00]}  exd4 {[%clk 0:02:32]} 7. Nxd4 {[%clk 0:02:59]}  Nxd4 {[%clk 0:02:30]} 8. Qxd4 {[%clk 0:02:59]}  c6 {[%clk 0:02:21]} 9. Nc3 {[%clk 0:02:58]}  Qb6 {[%clk 0:02:20]} 10. Qd2 {[%clk 0:02:48]}  O-O {[%clk 0:02:18]} 11. Be2 {[%clk 0:02:48]}  Bf5 {[%clk 0:02:15]} 12. O-O {[%clk 0:02:45]}  Rad8 {[%clk 0:02:12]} 13. Bf3 {[%clk 0:02:43]}  Rfe8 {[%clk 0:01:56]} 14. Rfd1 {[%clk 0:02:42]}  Bf8 {[%clk 0:01:56]} 15. Na4 {[%clk 0:02:36]}  Qc7 {[%clk 0:01:51]} 16. Bxf6 {[%clk 0:02:35]}  gxf6 {[%clk 0:01:52]} 17. Qd4 {[%clk 0:02:30]}  Qe7 {[%clk 0:01:36]} 18. Qxa7 {[%clk 0:02:25]}  Kh8 {[%clk 0:01:31]} 19. Rd2 {[%clk 0:02:11]}  Rd7 {[%clk 0:01:22]} 20. Qd4 {[%clk 0:02:08]}  Bg7 {[%clk 0:01:15]} 21. Rad1 {[%clk 0:02:04]}  Bg6 {[%clk 0:01:09]} 22. Qf4 {[%clk 0:02:03]}  Red8 {[%clk 0:00:53]} 23. Nb6 {[%clk 0:02:03]}  Rc7 {[%clk 0:00:44]} 24. Rxd6 {[%clk 0:01:58]}  Rxd6 {[%clk 0:00:45]} 25. Qxd6 {[%clk 0:01:56]}  Qxd6 {[%clk 0:00:42]} 26. Rxd6 {[%clk 0:01:56]}  Bf8 {[%clk 0:00:36]} 27. Rd8 {[%clk 0:01:56]}  Kg7 {[%clk 0:00:36]} 28. Rd7 {[%clk 0:01:16]}  Rxd7 {[%clk 0:00:33]} 29. Nxd7 {[%clk 0:01:17]}  Bd6 {[%clk 0:00:33]} 30. e4 {[%clk 0:01:04]}  h6 {[%clk 0:00:15]} 31. h4 {[%clk 0:01:02]}  f5 {[%clk 0:00:08]} 32. e5 {[%clk 0:01:02]}  Bc7 {[%clk 0:00:08]} 33. h5 {[%clk 0:01:00]}  Bh7 {[%clk 0:00:07]} 34. g3 {[%clk 0:00:59]}  Bg8 {[%clk 0:00:07]} 35. Be2 {[%clk 0:00:46]}  f6 {[%clk 0:00:07]} 36. exf6+ {[%clk 0:00:39]}  Kf7 {[%clk 0:00:08]} 37. Bd3 {[%clk 0:00:31]}  f4 {[%clk 0:00:03]} 38. g4 {[%clk 0:00:27]}  Ke8 {[%clk 0:00:03]} 39. Bf5 {[%clk 0:00:19]} 1-0


[Site "https://www.chess.com"]

[Event "Titled Tuesday Blitz January 03 Early 2023"]
[White "Guevara Sanchez, Erick Marvin"]
[Black "Dinu, Dumitru-Daniel"]
[WhiteFideId "6700136"]
[BlackFideId "1208403"]
[WhiteElo "2073"]
[BlackElo "2203"]
[Result "0-1"]
[Round "03"]
[TimeControl "180+2"]
[Date "2023.01.03"]
[WhiteClock "0:00:23"]
[BlackClock "0:00:55"]

1. e4 {[%clk 0:03:00]}  c5 {[%clk 0:02:55]} 2. Nf3 {[%clk 0:03:00]}  g6 {[%clk 0:02:55]} 3. d4 {[%clk 0:03:00]}  cxd4 {[%clk 0:02:55]} 4. Nxd4 {[%clk 0:03:01]}  Nc6 {[%clk 0:02:55]} 5. Be3 {[%clk 0:03:00]}  Nf6 {[%clk 0:02:54]} 6. Nc3 {[%clk 0:02:46]}  Bg7 {[%clk 0:02:53]} 7. Be2 {[%clk 0:02:44]}  O-O {[%clk 0:02:52]} 8. O-O {[%clk 0:02:44]}  d5 {[%clk 0:02:52]} 9. exd5 {[%clk 0:02:27]}  Nxd5 {[%clk 0:02:52]} 10. Nxd5 {[%clk 0:02:19]}  Qxd5 {[%clk 0:02:50]} 11. Bf3 {[%clk 0:02:18]}  Qa5 {[%clk 0:02:50]} 12. Nxc6 {[%clk 0:02:16]}  bxc6 {[%clk 0:02:50]} 13. Bxc6 {[%clk 0:02:15]}  Rb8 {[%clk 0:02:50]} 14. Rb1 {[%clk 0:02:00]}  Bf5 {[%clk 0:02:44]} 15. Bd4 {[%clk 0:01:40]}  Rfd8 {[%clk 0:02:40]} 16. c3 {[%clk 0:01:31]}  Bxd4 {[%clk 0:02:35]} 17. cxd4 {[%clk 0:01:29]}  Bxb1 {[%clk 0:02:33]} 18. Qxb1 {[%clk 0:01:28]}  Rxd4 {[%clk 0:02:32]} 19. b3 {[%clk 0:01:28]}  Rbd8 {[%clk 0:02:30]} 20. Bf3 {[%clk 0:01:26]}  Rd2 {[%clk 0:02:25]} 21. a4 {[%clk 0:01:23]}  Qb4 {[%clk 0:02:12]} 22. Rc1 {[%clk 0:01:20]}  R2d3 {[%clk 0:02:08]} 23. h3 {[%clk 0:01:08]}  Rxb3 {[%clk 0:01:57]} 24. Qa1 {[%clk 0:01:08]}  Rb8 {[%clk 0:01:49]} 25. Qe5 {[%clk 0:01:01]}  Rb1 {[%clk 0:01:18]} 26. Rxb1 {[%clk 0:00:55]}  Qxb1+ {[%clk 0:01:17]} 27. Kh2 {[%clk 0:00:56]}  Qb4 {[%clk 0:01:16]} 28. a5 {[%clk 0:00:54]}  Qd6 {[%clk 0:01:14]} 29. Qxd6 {[%clk 0:00:53]}  exd6 {[%clk 0:01:13]} 30. Kg3 {[%clk 0:00:52]}  Rb5 {[%clk 0:01:08]} 31. a6 {[%clk 0:00:52]}  Rb6 {[%clk 0:01:08]} 32. Bb7 {[%clk 0:00:52]}  Kg7 {[%clk 0:01:08]} 33. Kf4 {[%clk 0:00:51]}  Kf6 {[%clk 0:01:08]} 34. g4 {[%clk 0:00:49]}  Rb4+ {[%clk 0:01:06]} 35. Ke3 {[%clk 0:00:47]}  Ke5 {[%clk 0:01:06]} 36. Kd3 {[%clk 0:00:46]}  Rb3+ {[%clk 0:01:06]} 37. Kc4 {[%clk 0:00:45]}  Rxh3 {[%clk 0:01:05]} 38. Kb5 {[%clk 0:00:45]}  Rc3 {[%clk 0:01:05]} 39. Bc8 {[%clk 0:00:39]}  Rxc8 {[%clk 0:01:04]} 40. Ka5 {[%clk 0:00:37]}  Rb8 {[%clk 0:01:01]} 41. g5 {[%clk 0:00:35]}  Kd4 {[%clk 0:01:01]} 42. f4 {[%clk 0:00:32]}  Kc4 {[%clk 0:01:01]} 43. Ka4 {[%clk 0:00:29]}  Rb1 {[%clk 0:00:56]} 44. Ka3 {[%clk 0:00:29]}  Kc3 {[%clk 0:00:56]} 45. Ka2 {[%clk 0:00:28]}  Rf1 {[%clk 0:00:55]} 46. f5 {[%clk 0:00:27]}  gxf5 {[%clk 0:00:55]} 47. g6 {[%clk 0:00:26]}  fxg6 {[%clk 0:00:55]} 48. Ka3 {[%clk 0:00:23]}  Ra1# {[%clk 0:00:55]} 0-1


[Site "https://www.chess.com"]

[Event "Titled Tuesday Blitz January 03 Early 2023"]
[White "Batsiashvili, Nino"]
[Black "Tuleyeva-Aketayeva, Dana"]
[WhiteFideId "13602993"]
[BlackFideId "13701932"]
[WhiteElo "2467"]
[BlackElo "2130"]
[Result "1-0"]
[Round "03"]
[TimeControl "180+2"]
[Date "2023.01.03"]
[WhiteClock "0:00:57"]
[BlackClock "0:00:02"]

1. d4 {[%clk 0:03:00]}  Nf6 {[%clk 0:02:58]} 2. Nf3 {[%clk 0:03:01]}  e6 {[%clk 0:02:59]} 3. c4 {[%clk 0:03:01]}  c5 {[%clk 0:02:59]} 4. Nc3 {[%clk 0:02:59]}  d5 {[%clk 0:02:58]} 5. cxd5 {[%clk 0:02:58]}  Nxd5 {[%clk 0:02:56]} 6. e4 {[%clk 0:02:58]}  Nxc3 {[%clk 0:02:55]} 7. bxc3 {[%clk 0:02:59]}  cxd4 {[%clk 0:02:55]} 8. cxd4 {[%clk 0:03:00]}  Bb4+ {[%clk 0:02:54]} 9. Bd2 {[%clk 0:03:00]}  Bxd2+ {[%clk 0:02:54]} 10. Qxd2 {[%clk 0:03:01]}  O-O {[%clk 0:02:54]} 11. Bc4 {[%clk 0:03:02]}  Nc6 {[%clk 0:02:52]} 12. O-O {[%clk 0:03:02]}  b6 {[%clk 0:02:46]} 13. Rad1 {[%clk 0:02:55]}  Na5 {[%clk 0:02:39]} 14. Bd3 {[%clk 0:02:51]}  Bb7 {[%clk 0:02:37]} 15. Rfe1 {[%clk 0:02:49]}  h6 {[%clk 0:02:10]} 16. Qf4 {[%clk 0:02:48]}  Rc8 {[%clk 0:01:38]} 17. d5 {[%clk 0:02:37]}  exd5 {[%clk 0:01:29]} 18. exd5 {[%clk 0:02:38]}  Qf6 {[%clk 0:00:53]} 19. Qxf6 {[%clk 0:02:29]}  gxf6 {[%clk 0:00:53]} 20. d6 {[%clk 0:02:30]}  Bxf3 {[%clk 0:00:50]} 21. gxf3 {[%clk 0:02:31]}  Rcd8 {[%clk 0:00:45]} 22. Bf5 {[%clk 0:02:27]}  Nc4 {[%clk 0:00:41]} 23. d7 {[%clk 0:02:25]}  Ne5 {[%clk 0:00:39]} 24. Kg2 {[%clk 0:02:22]}  Kh8 {[%clk 0:00:38]} 25. f4 {[%clk 0:02:22]}  Rg8+ {[%clk 0:00:38]} 26. Kh3 {[%clk 0:02:18]}  Ng6 {[%clk 0:00:29]} 27. Re4 {[%clk 0:02:08]}  Rgf8 {[%clk 0:00:23]} 28. Rd6 {[%clk 0:02:07]}  Kg7 {[%clk 0:00:22]} 29. Kg4 {[%clk 0:02:02]}  h5+ {[%clk 0:00:20]} 30. Kxh5 {[%clk 0:01:50]}  Rh8+ {[%clk 0:00:19]} 31. Kg4 {[%clk 0:01:50]}  Rh4+ {[%clk 0:00:19]} 32. Kg3 {[%clk 0:01:49]}  Rhh8 {[%clk 0:00:18]} 33. Bxg6 {[%clk 0:01:31]}  Kxg6 {[%clk 0:00:15]} 34. Kg4 {[%clk 0:01:21]}  Kg7 {[%clk 0:00:12]} 35. h4 {[%clk 0:01:20]}  Rhg8 {[%clk 0:00:04]} 36. Rc4 {[%clk 0:01:06]}  Kf8+ {[%clk 0:00:02]} 37. Kf5 {[%clk 0:01:05]}  Ke7 {[%clk 0:00:02]} 38. Rd3 {[%clk 0:01:04]}  Rxd7 {[%clk 0:00:01]} 39. Re4+ {[%clk 0:00:59]}  Kd8 {[%clk 0:00:01]} 40. Rxd7+ {[%clk 0:00:58]}  Kxd7 {[%clk 0:00:02]} 41. Kxf6 {[%clk 0:00:59]}  Rh8 {[%clk 0:00:01]} 42. f5 {[%clk 0:00:58]}  Rxh4 {[%clk 0:00:01]} 43. Rxh4 {[%clk 0:00:57]}  Ke8 {[%clk 0:00:01]} 44. Rh8+ {[%clk 0:00:56]}  Kd7 {[%clk 0:00:02]} 45. Kxf7 {[%clk 0:00:57]} 1-0


[Site "https://www.chess.com"]

[Event "Titled Tuesday Blitz January 03 Early 2023"]
[White "Federzoni, Enzo"]
[Black "Mitrovic, Darko R"]
[WhiteFideId "2173301"]
[BlackFideId "927023"]
[WhiteElo "2133"]
[BlackElo "2220"]
[Result "0-1"]
[Round "03"]
[TimeControl "180+2"]
[Date "2023.01.03"]
[WhiteClock "0:02:02"]
[BlackClock "0:01:05"]

1. d4 {[%clk 0:03:00]}  Nf6 {[%clk 0:02:59]} 2. Nc3 {[%clk 0:03:00]}  d5 {[%clk 0:02:59]} 3. Bg5 {[%clk 0:02:59]}  Bf5 {[%clk 0:02:59]} 4. f3 {[%clk 0:02:55]}  e6 {[%clk 0:02:58]} 5. g4 {[%clk 0:02:53]}  Bg6 {[%clk 0:02:58]} 6. h4 {[%clk 0:02:53]}  h5 {[%clk 0:02:58]} 7. Bxf6 {[%clk 0:02:53]}  gxf6 {[%clk 0:02:49]} 8. e3 {[%clk 0:02:52]}  c5 {[%clk 0:02:34]} 9. Bb5+ {[%clk 0:02:50]}  Nc6 {[%clk 0:02:33]} 10. Nge2 {[%clk 0:02:49]}  Qb6 {[%clk 0:02:31]} 11. Qd2 {[%clk 0:02:44]}  a6 {[%clk 0:02:28]} 12. Bxc6+ {[%clk 0:02:44]}  Qxc6 {[%clk 0:02:21]} 13. g5 {[%clk 0:02:39]}  fxg5 {[%clk 0:02:05]} 14. hxg5 {[%clk 0:02:38]}  Bd6 {[%clk 0:02:03]} 15. dxc5 {[%clk 0:02:36]}  Qxc5 {[%clk 0:01:57]} 16. O-O-O {[%clk 0:02:33]}  O-O-O {[%clk 0:01:53]} 17. Kb1 {[%clk 0:02:32]}  Kb8 {[%clk 0:01:53]} 18. Nd4 {[%clk 0:02:31]}  Be5 {[%clk 0:01:42]} 19. f4 {[%clk 0:02:26]}  Bxd4 {[%clk 0:01:41]} 20. Qxd4 {[%clk 0:02:23]}  Qxd4 {[%clk 0:01:42]} 21. Rxd4 {[%clk 0:02:24]}  h4 {[%clk 0:01:32]} 22. e4 {[%clk 0:02:23]}  dxe4 {[%clk 0:01:26]} 23. Rxd8+ {[%clk 0:02:24]}  Rxd8 {[%clk 0:01:26]} 24. Rxh4 {[%clk 0:02:25]}  e3 {[%clk 0:01:18]} 25. Rh2 {[%clk 0:02:19]}  Rd2 {[%clk 0:01:09]} 26. Rxd2 {[%clk 0:02:09]}  exd2 {[%clk 0:01:09]} 27. Nd1 {[%clk 0:02:02]}  Bh5 {[%clk 0:01:07]} 28. Ne3 {[%clk 0:02:02]}  d1=Q+ {[%clk 0:01:04]} 29. Nxd1 {[%clk 0:02:02]}  Bxd1 {[%clk 0:01:05]} 0-1


[Site "https://www.chess.com"]

[Event "Titled Tuesday Blitz January 03 Early 2023"]
[White "Gutierrez Anaya, Yeison Joel"]
[Black "Chernov, Mikhail"]
[WhiteFideId "3903273"]
[BlackFideId "24143170"]
[WhiteElo "2125"]
[BlackElo "2205"]
[Result "1-0"]
[Round "03"]
[TimeControl "180+2"]
[Date "2023.01.03"]
[WhiteClock "0:00:11"]
[BlackClock "0:00:48"]

1. d4 {[%clk 0:03:00]}  d5 {[%clk 0:02:58]} 2. Nf3 {[%clk 0:02:57]}  Nc6 {[%clk 0:02:58]} 3. b3 {[%clk 0:02:54]}  Bg4 {[%clk 0:02:57]} 4. Bb2 {[%clk 0:02:52]}  e6 {[%clk 0:02:56]} 5. Nbd2 {[%clk 0:02:48]}  Nf6 {[%clk 0:02:55]} 6. h3 {[%clk 0:02:47]}  Bh5 {[%clk 0:02:55]} 7. e3 {[%clk 0:02:47]}  Bb4 {[%clk 0:02:51]} 8. Be2 {[%clk 0:02:47]}  Ne4 {[%clk 0:02:49]} 9. a3 {[%clk 0:02:42]}  Bxf3 {[%clk 0:02:44]} 10. axb4 {[%clk 0:02:33]}  Bxg2 {[%clk 0:02:39]} 11. Rg1 {[%clk 0:02:33]}  Bxh3 {[%clk 0:02:40]} 12. Nxe4 {[%clk 0:02:31]}  dxe4 {[%clk 0:02:39]} 13. b5 {[%clk 0:02:19]}  Ne7 {[%clk 0:02:39]} 14. Rxg7 {[%clk 0:02:17]}  Ng6 {[%clk 0:02:38]} 15. d5 {[%clk 0:01:35]}  e5 {[%clk 0:02:37]} 16. Rxg6 {[%clk 0:01:30]}  hxg6 {[%clk 0:02:37]} 17. Bxe5 {[%clk 0:01:30]}  Rh7 {[%clk 0:02:29]} 18. Qd4 {[%clk 0:01:28]}  Qg5 {[%clk 0:02:11]} 19. Bxc7 {[%clk 0:01:17]}  Qg1+ {[%clk 0:02:01]} 20. Kd2 {[%clk 0:01:15]}  Qxf2 {[%clk 0:02:00]} 21. Qxe4+ {[%clk 0:01:08]}  Kf8 {[%clk 0:01:52]} 22. d6 {[%clk 0:00:54]}  Re8 {[%clk 0:01:51]} 23. Qf3 {[%clk 0:00:42]}  Qh2 {[%clk 0:01:38]} 24. Rh1 {[%clk 0:00:26]}  Qe5 {[%clk 0:01:31]} 25. Rxh3 {[%clk 0:00:26]}  Rxh3 {[%clk 0:01:27]} 26. Qxh3 {[%clk 0:00:26]}  Kg7 {[%clk 0:01:22]} 27. d7 {[%clk 0:00:16]}  Qd5+ {[%clk 0:01:21]} 28. Bd3 {[%clk 0:00:16]}  Rf8 {[%clk 0:01:14]} 29. d8=Q {[%clk 0:00:14]}  Rxd8 {[%clk 0:01:15]} 30. Bxd8 {[%clk 0:00:14]}  Qxd8 {[%clk 0:01:15]} 31. Qf3 {[%clk 0:00:14]}  Qc7 {[%clk 0:01:10]} 32. Ke2 {[%clk 0:00:15]}  f5 {[%clk 0:01:07]} 33. e4 {[%clk 0:00:14]}  Qh2+ {[%clk 0:01:05]} 34. Kd1 {[%clk 0:00:15]}  f4 {[%clk 0:01:05]} 35. e5 {[%clk 0:00:15]}  Qg1+ {[%clk 0:00:56]} 36. Kd2 {[%clk 0:00:15]}  g5 {[%clk 0:00:53]} 37. Qxb7+ {[%clk 0:00:15]}  Kf8 {[%clk 0:00:54]} 38. Qc8+ {[%clk 0:00:13]}  Ke7 {[%clk 0:00:54]} 39. Qf5 {[%clk 0:00:14]}  Qg2+ {[%clk 0:00:48]} 40. Kc3 {[%clk 0:00:14]}  f3 {[%clk 0:00:49]} 41. Qf6+ {[%clk 0:00:13]}  Kd7 {[%clk 0:00:48]} 42. e6+ {[%clk 0:00:13]}  Kc7 {[%clk 0:00:48]} 43. e7 {[%clk 0:00:10]}  Qh1 {[%clk 0:00:49]} 44. Qe5+ {[%clk 0:00:10]}  Kb6 {[%clk 0:00:48]} 45. e8=Q {[%clk 0:00:10]}  f2 {[%clk 0:00:48]} 46. Qd8+ {[%clk 0:00:10]}  Kb7 {[%clk 0:00:48]} 47. Qec7# {[%clk 0:00:11]} 1-0


[Site "https://www.chess.com"]

[Event "Titled Tuesday Blitz January 03 Early 2023"]
[White "Tharushi, T H D Niklesha"]
[Black "Hoffmann, Asa"]
[WhiteFideId "9918264"]
[BlackFideId "2001470"]
[WhiteElo "1570"]
[BlackElo "2185"]
[Result "0-1"]
[Round "03"]
[TimeControl "180+2"]
[Date "2023.01.03"]
[WhiteClock "0:00:40"]
[BlackClock "0:01:43"]

1. e4 {[%clk 0:03:00]}  d6 {[%clk 0:02:53]} 2. d4 {[%clk 0:03:00]}  Nf6 {[%clk 0:02:52]} 3. Nc3 {[%clk 0:02:58]}  c6 {[%clk 0:02:50]} 4. f3 {[%clk 0:02:51]}  Nbd7 {[%clk 0:02:49]} 5. Be3 {[%clk 0:02:49]}  e5 {[%clk 0:02:47]} 6. h4 {[%clk 0:02:44]}  Be7 {[%clk 0:02:47]} 7. Nh3 {[%clk 0:02:43]}  Nh5 {[%clk 0:02:39]} 8. Bf2 {[%clk 0:02:21]}  Bxh4 {[%clk 0:02:32]} 9. Bxh4 {[%clk 0:02:21]}  Qxh4+ {[%clk 0:02:31]} 10. Nf2 {[%clk 0:02:22]}  Qg5 {[%clk 0:02:29]} 11. Qd2 {[%clk 0:02:00]}  Qxd2+ {[%clk 0:02:26]} 12. Kxd2 {[%clk 0:02:01]}  Ng3 {[%clk 0:02:22]} 13. Rh3 {[%clk 0:01:29]}  Nxf1+ {[%clk 0:02:21]} 14. Rxf1 {[%clk 0:01:29]}  exd4 {[%clk 0:02:20]} 15. Ne2 {[%clk 0:01:30]}  c5 {[%clk 0:02:20]} 16. Rfh1 {[%clk 0:01:28]}  h6 {[%clk 0:02:19]} 17. Nf4 {[%clk 0:01:28]}  Nf6 {[%clk 0:02:15]} 18. Rg3 {[%clk 0:01:26]}  g6 {[%clk 0:02:11]} 19. Ng4 {[%clk 0:01:20]}  Bxg4 {[%clk 0:02:09]} 20. fxg4 {[%clk 0:01:21]}  Nxe4+ {[%clk 0:02:09]} 21. Kd3 {[%clk 0:01:21]}  Nxg3 {[%clk 0:02:08]} 22. Re1+ {[%clk 0:01:20]}  Kf8 {[%clk 0:02:05]} 23. Nd5 {[%clk 0:01:20]}  Re8 {[%clk 0:02:03]} 24. Rh1 {[%clk 0:01:15]}  Re5 {[%clk 0:02:00]} 25. c4 {[%clk 0:01:06]}  dxc3 {[%clk 0:01:59]} 26. Nxc3 {[%clk 0:01:06]}  Kg7 {[%clk 0:01:59]} 27. Rh3 {[%clk 0:01:04]}  Nf1 {[%clk 0:01:54]} 28. Rf3 {[%clk 0:01:03]}  Nh2 {[%clk 0:01:54]} 29. Rf4 {[%clk 0:00:54]}  Rhe8 {[%clk 0:01:52]} 30. Ne4 {[%clk 0:00:51]}  Rxe4 {[%clk 0:01:51]} 31. Rxe4 {[%clk 0:00:51]}  Rxe4 {[%clk 0:01:51]} 32. Kxe4 {[%clk 0:00:52]}  Nxg4 {[%clk 0:01:51]} 33. a3 {[%clk 0:00:51]}  Kf6 {[%clk 0:01:50]} 34. b4 {[%clk 0:00:48]}  cxb4 {[%clk 0:01:49]} 35. axb4 {[%clk 0:00:49]}  Ke6 {[%clk 0:01:49]} 36. g3 {[%clk 0:00:47]}  d5+ {[%clk 0:01:47]} 37. Kd4 {[%clk 0:00:46]}  Kd6 {[%clk 0:01:47]} 38. b5 {[%clk 0:00:46]}  b6 {[%clk 0:01:45]} 39. Kc3 {[%clk 0:00:41]}  Kc5 {[%clk 0:01:44]} 40. Kb3 {[%clk 0:00:41]}  d4 {[%clk 0:01:44]} 41. Kc2 {[%clk 0:00:41]}  Kc4 {[%clk 0:01:43]} 42. Kd2 {[%clk 0:00:40]}  d3 {[%clk 0:01:43]} 43. Kc1 {[%clk 0:00:40]}  Kc3 {[%clk 0:01:43]} 44. Kd1 {[%clk 0:00:40]}  d2 {[%clk 0:01:43]} 0-1


[Site "https://www.chess.com"]

[Event "Titled Tuesday Blitz January 03 Early 2023"]
[White "Tang, Andrew"]
[Black "Nepomniachtchi, Ian"]
[WhiteFideId "2059630"]
[BlackFideId "4168119"]
[WhiteElo "2523"]
[BlackElo "2794"]
[Result "1-0"]
[Round "04"]
[TimeControl "180+2"]
[Date "2023.01.03"]
[WhiteClock "0:01:04"]
[BlackClock "0:01:49"]

1. d4 {[%clk 0:02:55]}  Nf6 {[%clk 0:02:59]} 2. c4 {[%clk 0:02:54]}  e6 {[%clk 0:02:59]} 3. Nc3 {[%clk 0:02:53]}  Bb4 {[%clk 0:02:58]} 4. Qc2 {[%clk 0:02:54]}  O-O {[%clk 0:02:58]} 5. Nf3 {[%clk 0:02:55]}  d5 {[%clk 0:02:57]} 6. Bg5 {[%clk 0:02:55]}  h6 {[%clk 0:02:57]} 7. Bxf6 {[%clk 0:02:55]}  Qxf6 {[%clk 0:02:56]} 8. a3 {[%clk 0:02:56]}  Bxc3+ {[%clk 0:02:54]} 9. Qxc3 {[%clk 0:02:57]}  dxc4 {[%clk 0:02:54]} 10. Qxc4 {[%clk 0:02:57]}  Nc6 {[%clk 0:02:54]} 11. Rd1 {[%clk 0:02:54]}  a6 {[%clk 0:02:53]} 12. g3 {[%clk 0:02:45]}  e5 {[%clk 0:02:53]} 13. d5 {[%clk 0:02:41]}  Na7 {[%clk 0:02:53]} 14. Qxc7 {[%clk 0:02:11]}  Nb5 {[%clk 0:02:53]} 15. Qxe5 {[%clk 0:02:03]}  Qb6 {[%clk 0:02:40]} 16. Bg2 {[%clk 0:01:55]}  Bd7 {[%clk 0:02:35]} 17. Qe3 {[%clk 0:01:49]}  Qxe3 {[%clk 0:02:30]} 18. fxe3 {[%clk 0:01:50]}  Rfe8 {[%clk 0:02:30]} 19. Kf2 {[%clk 0:01:48]}  Nd6 {[%clk 0:02:29]} 20. Nd2 {[%clk 0:01:48]}  f5 {[%clk 0:02:25]} 21. Rc1 {[%clk 0:01:48]}  Re7 {[%clk 0:02:24]} 22. Nc4 {[%clk 0:01:46]}  Nxc4 {[%clk 0:02:15]} 23. Rxc4 {[%clk 0:01:47]}  Rae8 {[%clk 0:02:15]} 24. Rc3 {[%clk 0:01:47]}  Kf7 {[%clk 0:02:13]} 25. d6 {[%clk 0:01:43]}  Re5 {[%clk 0:02:11]} 26. Bxb7 {[%clk 0:01:41]}  Rb8 {[%clk 0:02:11]} 27. Rc7 {[%clk 0:01:28]}  Ke6 {[%clk 0:02:10]} 28. Rd1 {[%clk 0:01:28]}  a5 {[%clk 0:02:10]} 29. Ba6 {[%clk 0:01:26]}  Rd8 {[%clk 0:02:07]} 30. b4 {[%clk 0:01:19]}  axb4 {[%clk 0:02:06]} 31. axb4 {[%clk 0:01:20]}  g5 {[%clk 0:02:05]} 32. Rd4 {[%clk 0:01:15]}  Kf6 {[%clk 0:02:00]} 33. Bb7 {[%clk 0:01:13]}  Rb5 {[%clk 0:01:57]} 34. Rxd7 {[%clk 0:01:03]}  Rxd7 {[%clk 0:01:49]} 35. Bc6 {[%clk 0:01:04]} 1-0


[Site "https://www.chess.com"]